fUSD/lending_fUSD_20240212
["ID","MTS","AMOUNT","RATE_DAILY","PERIOD"]
[313794349,1707724349950,-312.53349892,0.00032876,2]
[313794350,1707724349959,-10000.0,0.00032876,2]
[313794351,1707724349968,-10000.0,0.00032876,2]
[313794352,1707724349977,-9577.47414931,0.00032876,2]
[313794353,1707724349987,-10000.0,0.00032876,2]
[313794354,1707724349996,-10000.0,0.00032876,2]
[313794355,1707724350004,-10000.0,0.00032876,2]
[313794356,1707724350014,-10000.0,0.00032876,2]
[313794357,1707724350023,-10000.0,0.00032876,2]
[313794358,1707724350032,-10000.0,0.00032876,2]
[313794359,1707724350041,-10000.0,0.00032876,2]
[313794360,1707724350051,-10000.0,0.00032876,2]
[313794361,1707724350060,-10000.0,0.00032876,2]
[313794362,1707724350068,-10000.0,0.00032876,2]
[313794363,1707724350077,-5942.64493859,0.00032876,2]
[313794364,1707724350086,-2659.24616132,0.00032876,7]
[313794365,1707724350095,-532.72445075,0.00032876,2]
[313794366,1707724350104,-10000.0,0.00032876,3]
[313794367,1707724350113,-10000.0,0.00032876,3]
[313794368,1707724350122,-4372.03729627,0.00032876,3]
[313794369,1707724350131,-500.0,0.00032876,2]
[313794370,1707724350140,-250.24385963,0.00032876,2]
[313794371,1707724350149,-263.30723303,0.00032876,3]
[313794372,1707724350159,-900.0,0.00032877,2]
[313794373,1707724350168,-900.0,0.00032877,2]
[313794374,1707724350177,-900.0,0.00032877,2]
[313794375,1707724350186,-900.0,0.00032877,2]
[313794376,1707724350194,-900.0,0.00032877,2]
[313794377,1707724350203,-900.0,0.00032877,2]
[313794378,1707724350212,-900.0,0.00032877,2]
[313794379,1707724350221,-900.0,0.00032877,2]
[313794380,1707724350230,-900.0,0.00032877,2]
[313794381,1707724350239,-900.0,0.00032877,2]
[313794382,1707724350248,-900.0,0.00032877,2]
[313794383,1707724350257,-900.0,0.00032877,2]
[313794384,1707724350266,-900.0,0.00032877,2]
[313794385,1707724350275,-900.0,0.00032877,2]
[313794386,1707724350285,-900.0,0.00032877,2]
[313794387,1707724350296,-900.0,0.00032877,2]
[313794388,1707724350305,-900.0,0.00032877,2]
[313794389,1707724350314,-900.0,0.00032877,2]
[313794390,1707724350324,-900.0,0.00032877,2]
[313794391,1707724350334,-900.0,0.00032877,2]
[313794392,1707724350343,-900.0,0.00032877,2]
[313794393,1707724350353,-900.0,0.00032877,2]
[313794394,1707724350362,-900.0,0.00032877,2]
[313794395,1707724350371,-900.0,0.00032877,2]
[313794396,1707724350381,-900.0,0.00032877,2]
[313794397,1707724350390,-900.0,0.00032877,2]
[313794398,1707724350399,-900.0,0.00032877,2]
[313794399,1707724350408,-900.0,0.00032877,2]
[313794400,1707724350417,-516.0,0.00032877,2]
[313794401,1707724350427,-686.76,0.00032877,2]
[313794402,1707724350440,-156.35403647,0.00032877,30]
[313794403,1707724350450,-1125.0,0.000329,2]
[313794404,1707724350459,-3419.0,0.000329,2]
[313794405,1707724350468,-50000.0,0.00033,3]
[313794406,1707724350478,-5000.0,0.00033,15]
[313794407,1707724350487,-913.34,0.00033,2]
[313794408,1707724350497,-200.0,0.00033,2]
[313794409,1707724350506,-500.0,0.00033,2]
[313794410,1707724350516,-30000.0,0.00033,2]
[313794411,1707724350526,-30000.0,0.00033,3]
[313794412,1707724350535,-1694.48489099,0.00033,2]
[313794413,1707724350545,-950.0,0.00033,3]
[313794414,1707724350553,-300.0,0.00033,34]
[313794415,1707724350562,-1000.0,0.0003315,21]
[313794416,1707724350572,-200.0,0.000332,6]
[313794417,1707724350581,-900.0,0.00033273,2]
[313794418,1707724350590,-900.0,0.00033273,2]
[313794419,1707724350599,-900.0,0.00033273,2]
[313794420,1707724350608,-900.0,0.00033273,2]
[313794421,1707724350617,-900.0,0.00033273,2]
[313794422,1707724350627,-900.0,0.00033273,2]
[313794423,1707724350636,-900.0,0.00033273,2]
[313794424,1707724350645,-900.0,0.00033273,2]
[313794425,1707724350653,-900.0,0.00033273,2]
[313794426,1707724350662,-900.0,0.00033273,2]
[313794427,1707724350672,-900.0,0.00033273,2]
[313794428,1707724350681,-900.0,0.00033273,2]
[313794429,1707724350691,-900.0,0.00033273,2]
[313794430,1707724350699,-900.0,0.00033273,2]
[313794431,1707724350709,-900.0,0.00033273,2]
[313794432,1707724350718,-900.0,0.00033273,2]
[313794433,1707724350726,-900.0,0.00033273,2]
[313794434,1707724350736,-900.0,0.00033273,2]
[313794435,1707724350746,-900.0,0.00033273,2]
[313794436,1707724350755,-900.0,0.00033273,2]
[313794437,1707724350764,-900.0,0.00033273,2]
[313794438,1707724350773,-900.0,0.00033273,2]
[313794439,1707724350782,-900.0,0.00033273,2]
[313794440,1707724350791,-900.0,0.00033273,2]
[313794441,1707724350800,-900.0,0.00033273,2]
[313794442,1707724350809,-900.0,0.00033273,2]
[313794443,1707724350818,-900.0,0.00033273,2]
[313794444,1707724350827,-900.0,0.00033273,2]
[313794445,1707724350836,-900.0,0.00033273,2]
[313794446,1707724350845,-900.0,0.00033273,2]
[313794447,1707724350854,-900.0,0.00033273,2]
[313794448,1707724350863,-900.0,0.00033273,2]
[313794449,1707724350872,-900.0,0.00033273,2]
[313794450,1707724350881,-900.0,0.00033273,2]
[313794451,1707724350891,-900.0,0.00033273,2]
[313794452,1707724350900,-900.0,0.00033273,2]
[313794453,1707724350909,-900.0,0.00033273,2]
[313794454,1707724350918,-900.0,0.00033273,2]
[313794455,1707724350927,-900.0,0.00033273,2]
[313794456,1707724350936,-900.0,0.00033273,2]
[313794457,1707724350945,-900.0,0.00033273,2]
[313794458,1707724350954,-50000.0,0.00033309,10]
[313794459,1707724350963,-50000.0,0.00033309,10]
[313794460,1707724350973,-50000.0,0.00033309,10]
[313794461,1707724350981,-19425.79273158,0.00033309,10]
[313794462,1707724350991,-18298.75469001,0.00033309,10]
[313794463,1707724351000,-17392.74669921,0.00033309,10]
[313794464,1707724351009,-150.0,0.00033309,2]
[313794465,1707724351019,-171.22,0.00033321,2]
[313794466,1707724351028,-151.0,0.00033429,4]
[313794467,1707724351038,-5302.051343,0.00033497,2]
[313794468,1707724351047,-748.86,0.000335,2]
[313794469,1707724351056,-748.86,0.000335,2]
[313794470,1707724351253,-748.86,0.000335,2]
[313794471,1707724351262,-748.86,0.000335,2]
[313794472,1707724351272,-748.86,0.000335,2]
[313794473,1707724351282,-748.86,0.000335,2]
[313794474,1707724351291,-748.86,0.000335,2]
[313794475,1707724351300,-748.86,0.000335,2]
[313794476,1707724351310,-748.86,0.000335,2]
[313794477,1707724351319,-748.86,0.000335,2]
[313794478,1707724351328,-748.86,0.000335,2]
[313794479,1707724351337,-748.86,0.000335,2]
[313794480,1707724351346,-748.86,0.000335,2]
[313794481,1707724351356,-748.86,0.000335,2]
[313794482,1707724351365,-748.86,0.000335,2]
[313794483,1707724351375,-748.86,0.000335,2]
[313794484,1707724351384,-748.86,0.000335,2]
[313794485,1707724351394,-748.86,0.000335,2]
[313794486,1707724351403,-748.86,0.000335,2]
[313794487,1707724351413,-748.86,0.000335,2]
[313794488,1707724351424,-3419.0,0.0003355,2]
[313794489,1707724351436,-181.530769,0.00033552,2]
[313794490,1707724351446,-171.997842,0.00033552,2]
[313794491,1707724351455,-3810.36092,0.00033552,2]
[313794492,1707724351464,-1265.90664,0.00033552,2]
[313794493,1707724351475,-171.805838,0.00033552,2]
[313794494,1707724351484,-1000.0,0.00033597,7]
[313794495,1707724351494,-1000.0,0.00033597,7]
[313794496,1707724351504,-1000.0,0.00033597,7]
[313794497,1707724351514,-1000.0,0.00033597,7]
[313794498,1707724351525,-1000.0,0.00033597,7]
[313794499,1707724351534,-201.82647323,0.00033597,5]
[313794500,1707724351544,-392.65969116,0.00033597,5]
[313794501,1707724351554,-155.90163919,0.00033597,5]
[313794502,1707724351563,-270.5636839,0.00033597,5]
[313794503,1707724351573,-241.72834926,0.00033597,5]
[313794504,1707724351582,-258.48308096,0.00033597,5]
[313794505,1707724351591,-286.36092164,0.00033597,5]
[313794506,1707724351600,-221.4957607,0.00033597,5]
[313794507,1707724351610,-518.76720481,0.00033597,5]
[313794508,1707724351619,-453.55888834,0.00033597,5]
[313794509,1707724351629,-449.10191329,0.00033597,5]
[313794510,1707724351638,-333.59235201,0.00033597,4]
[313794511,1707724351648,-1000.0,0.00033597,7]
[313794512,1707724351658,-1000.0,0.00033597,7]
[313794513,1707724351667,-1000.0,0.00033597,7]
[313794514,1707724351677,-500.0,0.00033597,4]
[313794515,1707724351686,-1000.0,0.00033597,7]
[313794516,1707724351695,-1000.0,0.00033597,7]
[313794517,1707724351704,-1000.0,0.00033597,7]
[313794518,1707724351712,-200.0,0.000337,6]
[313794519,1707724351722,-164834.64649345,0.000337,2]
[313794520,1707724351731,-151.97130466,0.0003376,7]
[313794521,1707724351741,-18484.47762885,0.000339,5]
[313794522,1707724351750,-151.46458549,0.000339,2]
[313794523,1707724351759,-151.46458531,0.000339,2]
[313794524,1707724351768,-151.46458531,0.000339,2]
[313794525,1707724351778,-151.46458531,0.000339,2]
[313794526,1707724351787,-151.46458531,0.000339,2]
[313794527,1707724351798,-151.46458531,0.000339,2]
[313794528,1707724351807,-151.46458531,0.000339,2]
[313794529,1707724351817,-151.46458531,0.000339,2]
[313794530,1707724351826,-151.46458531,0.000339,2]
[313794531,1707724351835,-151.46458531,0.000339,2]
[313794532,1707724351844,-151.46458531,0.000339,2]
[313794533,1707724351854,-151.46458531,0.000339,2]
[313794534,1707724351863,-151.46458531,0.000339,2]
[313794535,1707724351873,-151.46458531,0.000339,2]
[313794536,1707724351883,-151.46458531,0.000339,2]
[313794537,1707724351893,-151.46458531,0.000339,2]
[313794538,1707724351902,-151.46458531,0.000339,2]
[313794539,1707724351911,-5302.051343,0.00033916,2]
[313794540,1707724351920,-3810.36092,0.00033971,2]
[313794541,1707724351929,-1265.90664,0.00033971,2]
[313794542,1707724351939,-1000.0,0.00033972,23]
[313794543,1707724351949,-5000.0,0.0003398,2]
[313794544,1707724351958,-50000.0,0.00034,4]
[313794545,1707724351967,-767.32331922,0.00034,4]
[313794546,1707724351976,-180.0,0.00034,4]
[313794547,1707724351985,-1000.0,0.00034,4]
[313794548,1707724351995,-10503.0,0.00034,2]
[313794549,1707724352004,-2000.0,0.00034,4]
[313794550,1707724352013,-20108.62899363,0.00034,2]
[313794551,1707724352022,-10038.95,0.00034,3]
[313794552,1707724352031,-34980.53685663,0.00034,5]
[313794553,1707724352376,-2563.57660279,0.00034,5]
[313794554,1707724352394,-4608.4,0.00025852,2]
[313794555,1707724352403,-30400.65194011,0.00034,5]
[313794556,1707724352415,-701.33067573,0.00034,5]
[313794557,1707724353813,-500.0,0.00022561,2]
[313794558,1707724353822,-126.86484445,0.00022564,2]
[313794559,1707724353848,-523.35032396,0.00022564,2]
[313794560,1707724353857,-500.0,0.00022565,2]
[313794561,1707724353867,-500.0,0.00022835,2]
[313794562,1707724353877,-500.0,0.00022839,2]
[313794563,1707724353887,-500.0,0.00023109,2]
[313794564,1707724353898,-500.0,0.00023113,2]
[313794565,1707724353908,-500.0,0.00023383,2]
[313794566,1707724353919,-500.0,0.00023387,2]
[313794567,1707724353928,-500.0,0.00023387,2]
[313794568,1707724353937,-273.90271143,0.00023657,2]
[313794569,1707724353957,-226.09728857,0.00023657,2]
[313794570,1707724353967,-102.70271163,0.00023661,2]
[313794571,1707724361006,154.09,0.00020959,2]
[313794573,1707724437727,175.07,0.00021916,2]
[313794574,1707724438604,1000.0,0.00021916,2]
[313794575,1707724469388,6437.41316201,0.00025,30]
[313794576,1707724517301,246.53,0.00021877,2]
[313794580,1707724570193,-191.38834028,0.00038958,30]
[313794581,1707724570215,-597.96679603,0.00038958,30]
[313794582,1707724570237,-1999210.64486369,0.00038958,32]
[313794583,1707724582376,-843043.72128716,0.00038958,32]
[313794584,1707724582398,-18126.81635791,0.00038958,30]
[313794585,1707724582420,-1000.0,0.00038958,30]
[313794586,1707724582443,-200.0,0.00038958,30]
[313794587,1707724582465,-200.0,0.00038958,30]
[313794588,1707724582488,-200.0,0.00038958,30]
[313794589,1707724582517,-158.30682558,0.00038958,30]
[313794590,1707724582539,-99827.55960714,0.00038958,30]
[313794591,1707724582561,-3210.12958756,0.00038958,30]
[313794592,1707724582587,-242.09521609,0.00038958,30]
[313794593,1707724582610,-200.0,0.00038958,30]
[313794594,1707724582632,-206.44972246,0.00038958,30]
[313794595,1707724582653,-20000.0,0.00038958,30]
[313794596,1707724582677,-517.55248228,0.00038958,30]
[313794597,1707724582699,-167.14093988,0.00038958,30]
[313794598,1707724582720,-2000.0,0.00038958,30]
[313794599,1707724582742,-502.87809411,0.00038958,31]
[313794600,1707724582764,-1000.0,0.00038958,30]
[313794601,1707724582798,-1000.0,0.00038958,30]
[313794602,1707724582820,-1000.0,0.00038958,30]
[313794603,1707724582842,-47007.08787905,0.00038958,30]
[313794604,1707724582864,-5364.9849956,0.00038958,30]
[313794605,1707724582886,-4745.55382397,0.00038958,30]
[313794606,1707724582908,-276.1364375,0.00038958,30]
[313794607,1707724582930,-1675.3212883,0.00038958,30]
[313794608,1707724582951,-10070.91255809,0.00038958,30]
[313794609,1707724582973,-200000.06231616,0.00038958,30]
[313794610,1707724583005,-18856.0,0.00038958,30]
[313794611,1707724583027,-300000.0,0.00038958,30]
[313794612,1707724583050,-300000.0,0.00038958,30]
[313794613,1707724583072,-119201.29058116,0.00038958,30]
[313794614,1707724606580,164.42,0.00021982,2]
[313794615,1707724608592,250.0,0.00021818,2]
[313794616,1707724631451,-180798.70941884,0.00038958,30]
[313794617,1707724631474,-93645.22,0.00038958,30]
[313794618,1707724631517,-27000.0,0.00038958,30]
[313794619,1707724631540,-500.0,0.00038958,120]
[313794620,1707724631564,-29233.4143423,0.00038958,30]
[313794621,1707724631600,-1713.83216023,0.00038958,30]
[313794622,1707724631623,-12780.0,0.00038958,30]
[313794623,1707724631645,-4096.52788389,0.00038958,120]
[313794624,1707724631668,-277.97356169,0.00038958,60]
[313794625,1707724631692,-3635.22164267,0.00038958,30]
[313794626,1707724631714,-82406.7545309,0.00038958,32]
[313794627,1707724631737,-2550.28439744,0.00038958,120]
[313794628,1707724631760,-7500.0,0.00038958,30]
[313794629,1707724631783,-1564.71551112,0.00038958,30]
[313794630,1707724631805,-252.61021247,0.00038958,30]
[313794631,1707724631828,-2008.99716409,0.00038958,30]
[313794632,1707724631850,-281.94000258,0.00038958,30]
[313794633,1707724631872,-2000.0,0.00038958,30]
[313794634,1707724631895,-1000.0,0.00038958,60]
[313794635,1707724631917,-500.0,0.00038958,70]
[313794636,1707724631939,-500.0,0.00038958,50]
[313794637,1707724631961,-500.0,0.00038958,40]
[313794638,1707724631983,-500.0,0.00038958,30]
[313794639,1707724632007,-150.0,0.00038958,90]
[313794640,1707724632030,-150.0,0.00038958,100]
[313794641,1707724632053,-150.0,0.00038958,110]
[313794642,1707724632075,-3913.10218284,0.00038958,30]
[313794643,1707724632098,-12880.2385936,0.00038958,30]
[313794644,1707724632120,-221.85616291,0.00038958,120]
[313794645,1707724632142,-9010.6959029,0.00038958,30]
[313794646,1707724632164,-300000.0,0.00038958,30]
[313794647,1707724632186,-100350.0,0.00038958,30]
[313794648,1707724632208,-100000.0,0.00038958,30]
[313794649,1707724632230,-100000.0,0.00038958,30]
[313794650,1707724632251,-10000.0,0.00038958,30]
[313794651,1707724632273,-10000.0,0.00038958,45]
[313794652,1707724632295,-150.0,0.00038958,120]
[313794653,1707724632318,-250.10377128,0.00038958,120]
[313794654,1707724632340,-155.55867866,0.00038958,120]
[313794655,1707724632362,-815.38849368,0.00038958,30]
[313794656,1707724632384,-345125.94,0.00038958,30]
[313794657,1707724632406,-975.6471198,0.00038958,30]
[313794658,1707724632429,-780651.97181998,0.00038958,30]
[313794659,1707724632452,-1288.9208289,0.00038958,30]
[313794660,1707724632475,-1544.08892428,0.00038958,120]
[313794661,1707724632498,-200.0,0.00038958,30]
[313794662,1707724632523,-165.63056109,0.00038958,120]
[313794663,1707724632547,-10032.87427483,0.00038958,120]
[313794664,1707724632570,-374.64814274,0.00038958,120]
[313794665,1707724632592,-479.98588106,0.00038958,120]
[313794666,1707724632616,-176.45250005,0.00038958,60]
[313794667,1707724632638,-416.2453758,0.00038958,60]
[313794668,1707724632660,-172.19781217,0.00038958,120]
[313794669,1707724632685,-157.0,0.00038958,120]
[313794670,1707724632709,-9994.96,0.00038958,30]
[313794671,1707724632732,-256.8,0.00038958,30]
[313794672,1707724632754,-38893.0,0.00038958,30]
[313794673,1707724632776,-45588.5196096,0.00038958,120]
[313794674,1707724632798,-746.1682775,0.00038958,120]
[313794675,1707724632820,-8100.0,0.00038958,120]
[313794676,1707724632842,-1000.0,0.00038958,30]
[313794677,1707724632863,-169.00772569,0.00038958,120]
[313794678,1707724632885,-1095.2124037,0.00038958,120]
[313794679,1707724632908,-1502.43643461,0.00038958,120]
[313794680,1707724632930,-173.31611967,0.00038958,30]
[313794681,1707724632952,-1715.934942,0.00038958,30]
[313794682,1707724632973,-10000.0,0.00038958,120]
[313794683,1707724632995,-237.999524,0.00038958,30]
[313794684,1707724633017,-1000.0,0.00038958,30]
[313794685,1707724633038,-1000.0,0.00038958,30]
[313794686,1707724633060,-1000.0,0.00038958,30]
[313794687,1707724633082,-1000.0,0.00038958,30]
[313794688,1707724633103,-1000.0,0.00038958,30]
[313794689,1707724633125,-1979.406007,0.00038958,30]
[313794690,1707724633147,-1987.288625,0.00038958,30]
[313794691,1707724633169,-5165.281165,0.00038958,63]
[313794692,1707724633191,-121189.92131144,0.00038958,120]
[313794693,1707724633307,4260.15,0.00021757,2]
[313794694,1707724645069,506.39042981,0.00022386,2]
[313794695,1707724649289,162.25097554,0.00020303,2]
[313794696,1707724661492,888.69404351,0.00021757,2]
[313794697,1707724677496,888.69404351,0.00021757,2]
[313794698,1707724679451,500.0,0.00021757,2]
[313794699,1707724683332,494.07,0.00021781,2]
[313794700,1707724684696,221.54790231,0.00021757,2]
[313794701,1707724691575,161.86761481,0.00022351,2]
[313794702,1707724697489,888.69404351,0.00021757,2]
[313794703,1707724699434,500.0,0.00021757,2]
[313794704,1707724709636,2508.83404052,0.00021882,2]
[313794705,1707724715430,410.08617977,0.00021757,2]
[313794706,1707724715501,888.69404351,0.00022351,2]
[313794707,1707724728733,3142.72901814,0.00021431,2]
[313794708,1707724730248,2673.85223,0.00022335,2]
[313794709,1707724735504,745.75688978,0.00022351,2]
[313794710,1707724744352,278.52998989,0.00022,2]
[313794711,1707724748720,3153.319274,0.00021431,2]
[313794712,1707724751075,165.75,0.00021717,2]
[313794713,1707724751417,200.0,0.00021717,2]
[313794714,1707724788731,3173.33410049,0.00021431,2]
[313794715,1707724826836,200.0,0.00021734,2]
[313794716,1707724837035,151.27783915,0.00022382,2]
[313794717,1707724849193,167.91,0.00021686,2]
[313794718,1707724875569,176.86,0.00016712,2]
[313794719,1707724891080,500.0,0.00021684,2]
[313794720,1707724904971,2602.63,0.00021684,2]
[313794721,1707724933487,211.39,0.00021702,2]
[313794722,1707724963624,2000.0,0.00021702,2]
[313794723,1707724987686,283.64,0.00019806,2]
[313794724,1707724987911,283.64,0.0002207,2]
[313794725,1707725003905,200.0,0.00021724,2]
[313794726,1707725012707,632.2,0.00021918,2]
[313794727,1707725048851,413.15,0.00021837,2]
[313794728,1707725050001,184.15836285,0.00022333,2]
[313794729,1707725105057,176.24,0.00021828,2]
[313794730,1707725114079,250.0,0.00021828,2]
[313794731,1707725116890,164.42,0.00022017,2]
[313794732,1707725325578,1068.0,0.000223,2]
[313794733,1707725358426,-338.76210274,0.00022417,2]
[313794734,1707725358445,-338.76210274,0.00022418,2]
[313794735,1707725358464,-338.76210274,0.00022419,2]
[313794736,1707725358484,-3669.68412664,0.00022419,2]
[313794737,1707725358503,-150.0,0.00022419,2]
[313794738,1707725358525,-150.0,0.00022419,2]
[313794739,1707725358544,-10553.48847873,0.0002242,2]
[313794740,1707725358564,-16854.3290026,0.00022498,2]
[313794741,1707725358585,-291.15664983,0.000225,2]
[313794742,1707725358605,-5395.01,0.000225,2]
[313794743,1707725358625,-906.4098,0.00022521,10]
[313794744,1707725358644,-356.2821577,0.00022559,2]
[313794745,1707725358665,-499.99,0.00022559,2]
[313794746,1707725358690,-250.49366268,0.0002256,2]
[313794747,1707725358708,-156.03488226,0.0002256,2]
[313794748,1707725358727,-892.23238903,0.0002256,2]
[313794749,1707725358747,-500.0,0.00022561,2]
[313794750,1707725358768,-500.0,0.00022561,2]
[313794751,1707725358787,-500.0,0.00022561,2]
[313794752,1707725358805,-540.17,0.00022561,2]
[313794753,1707725358825,-500.0,0.00022561,2]
[313794754,1707725358844,-500.0,0.00022561,2]
[313794755,1707725358864,-500.0,0.00022561,2]
[313794756,1707725358887,-500.0,0.00022561,2]
[313794757,1707725358907,-500.0,0.00022561,2]
[313794758,1707725358928,-500.0,0.00022561,2]
[313794759,1707725358947,-500.0,0.00022561,2]
[313794760,1707725358965,-500.0,0.00022561,2]
[313794761,1707725358984,-500.0,0.00022561,2]
[313794762,1707725359002,-500.0,0.00022561,2]
[313794763,1707725359021,-500.0,0.00022561,2]
[313794764,1707725359040,-500.0,0.00022561,2]
[313794765,1707725359059,-500.0,0.00022561,2]
[313794766,1707725359078,-500.0,0.00022561,2]
[313794767,1707725359098,-500.0,0.00022561,2]
[313794768,1707725359117,-500.0,0.00022561,2]
[313794769,1707725359137,-500.0,0.00022561,2]
[313794770,1707725359157,-500.0,0.00022561,2]
[313794771,1707725359177,-500.0,0.00022561,2]
[313794772,1707725359196,-500.0,0.00022561,2]
[313794773,1707725359215,-500.0,0.00022561,2]
[313794774,1707725359234,-500.0,0.00022561,2]
[313794775,1707725359253,-500.0,0.00022561,2]
[313794776,1707725359272,-500.0,0.00022561,2]
[313794777,1707725359291,-500.0,0.00022561,2]
[313794778,1707725359313,-500.0,0.00022561,2]
[313794779,1707725359332,-500.0,0.00022561,2]
[313794780,1707725359351,-500.0,0.00022561,2]
[313794781,1707725359370,-500.0,0.00022561,2]
[313794782,1707725359389,-500.0,0.00022561,2]
[313794783,1707725359411,-500.0,0.00022561,2]
[313794784,1707725359431,-500.0,0.00022561,2]
[313794785,1707725359451,-500.0,0.00022561,2]
[313794786,1707725359471,-318.43254231,0.00022561,2]
[313794797,1707725423225,2000.0,0.00022087,2]
[313794810,1707725431420,-291.15664983,0.000225,2]
[313794811,1707725431429,-181.56745769,0.00022561,2]
[313794812,1707725431438,-500.0,0.00022561,2]
[313794813,1707725431447,-500.0,0.00022561,2]
[313794814,1707725431456,-500.0,0.00022561,2]
[313794815,1707725431465,-500.0,0.00022561,2]
[313794816,1707725431474,-19.37505326,0.00022561,2]
[313794817,1707725431485,-346.14684546,0.00022561,2]
[313794818,1707725431496,-139.92810128,0.00022561,2]
[313794819,1707725431505,-500.0,0.00022561,2]
[313794820,1707725431514,-500.0,0.00022561,2]
[313794821,1707725431522,-500.0,0.00022561,2]
[313794822,1707725431531,-500.0,0.00022561,2]
[313794823,1707725431540,-500.0,0.00022561,2]
[313794824,1707725431548,-52.14167404,0.00022561,2]
[313794825,1707725431560,-531.84832596,0.00022561,2]
[313794826,1707725431569,-500.0,0.00022561,2]
[313794827,1707725431577,-506.46,0.00022561,2]
[313794828,1707725431586,-500.0,0.00022561,2]
[313794829,1707725431595,-500.0,0.00022561,2]
[313794830,1707725431604,-258.18248199,0.00022561,2]
[313794831,1707725431616,-241.81751801,0.00022561,2]
[313794832,1707725431624,-500.0,0.00022561,2]
[313794833,1707725431633,-500.0,0.00022561,2]
[313794834,1707725431642,-500.0,0.00022561,2]
[313794835,1707725431651,-500.0,0.00022561,2]
[313794836,1707725431659,-500.0,0.00022561,2]
[313794837,1707725431668,-500.0,0.00022561,2]
[313794838,1707725431677,-531.38,0.00022561,2]
[313794839,1707725431686,-500.0,0.00022561,2]
[313794840,1707725431695,-500.0,0.00022561,2]
[313794841,1707725431706,-500.0,0.00022561,2]
[313794842,1707725431715,-500.0,0.00022561,2]
[313794843,1707725431725,-4746.22899231,0.00022562,2]
[313794844,1707725431736,-549.72548149,0.00022562,2]
[313794845,1707725431746,-338.76210274,0.00022563,2]
[313794846,1707725431755,-494.92170516,0.00022563,2]
[313794848,1707725431770,-1336.63347607,0.00022563,2]
[313794849,1707725431782,-80.35024875,0.00022563,2]
[313794850,1707725431791,-953.34975125,0.00022564,2]
[313794851,1707725431802,-338.84152122,0.00022564,2]
[313794852,1707725431811,-193.60338785,0.00022564,2]
[313794853,1707725431819,-90.14780887,0.00022564,2]
[313794855,1707725431858,-266.569,0.00022564,2]
[313794856,1707725431869,-143.28319113,0.00022564,2]
[313794857,1707725431877,-318.29333132,0.00022564,2]
[313794859,1707725431889,-181.70666868,0.00022564,2]
[313794861,1707725431897,-82.84333132,0.00022564,2]
[313794862,1707725431908,-417.15666868,0.00022564,2]
[313794864,1707725431917,-226.20723897,0.00022564,2]
[313794866,1707725431928,-273.79276103,0.00022564,2]
[313794868,1707725431937,-93.12211896,0.00022564,2]
[313794869,1707725431949,-406.87788104,0.00022564,2]
[313794871,1707725431958,-500.0,0.00022564,2]
[313794873,1707725431967,-500.0,0.00022564,2]
[313794875,1707725431977,-292.54140759,0.00022564,2]
[313794876,1707725431985,-500.0,0.00022564,2]
[313794878,1707725431994,-500.0,0.00022564,2]
[313794880,1707725432003,-500.0,0.00022564,2]
[313794881,1707725432013,-500.0,0.00022564,2]
[313794883,1707725432022,-500.0,0.00022564,2]
[313794885,1707725432030,-372.94135525,0.00022564,2]
[313794897,1707725437445,-127.05864475,0.00022564,2]
[313794898,1707725437454,-500.0,0.00022564,2]
[313794899,1707725437463,-105.37602414,0.00022564,2]